[Event "Early-Titled-Tuesday-Blitz-April-16-2024"]
[Site "Chess.com"]
[Date "2024.04.16"]
[Round "4"]
[White "JSPrepz"]
[Black "Squirlolz"]
[Result "1-0"]
[WhiteElo "2821"]
[BlackElo "2577"]
[TimeControl "180+1"]
[EndTime "8:40:13 PDT"]
[Termination "JSPrepz won on time"]

1. e4 {[%clk 0:03:00.9]} 1... g6 {[%clk 0:03:00.1]} 2. d4 {[%clk 0:03:00.8]}
2... Bg7 {[%clk 0:03:01]} 3. Nc3 {[%clk 0:03:00.7]} 3... a6 {[%clk 0:02:59.7]}
4. Nf3 {[%clk 0:02:58.5]} 4... b5 {[%clk 0:02:59.8]} 5. Bd3 {[%clk 0:02:53.7]}
5... d6 {[%clk 0:02:56.7]} 6. h4 {[%clk 0:02:53.7]} 6... Bg4 {[%clk 0:02:51.1]}
7. Be3 {[%clk 0:02:53.2]} 7... Nd7 {[%clk 0:02:50.3]} 8. Qd2 {[%clk 0:02:45.7]}
8... c5 {[%clk 0:02:48.6]} 9. d5 {[%clk 0:02:42.7]} 9... Bxf3 {[%clk 0:02:41.4]}
10. gxf3 {[%clk 0:02:42.7]} 10... Ngf6 {[%clk 0:02:42.3]} 11. Be2 {[%clk
0:02:36.8]} 11... b4 {[%clk 0:02:38.1]} 12. Na4 {[%clk 0:02:34.5]} 12... h5
{[%clk 0:02:33]} 13. Rd1 {[%clk 0:02:11]} 13... O-O {[%clk 0:02:05.5]} 14. Rg1
{[%clk 0:02:11.5]} 14... Nb6 {[%clk 0:02:00.1]} 15. Nxb6 {[%clk 0:02:10.2]}
15... Qxb6 {[%clk 0:02:01]} 16. Bd3 {[%clk 0:01:53.2]} 16... Qc7 {[%clk
0:01:57.9]} 17. Bc4 {[%clk 0:01:46.2]} 17... Nd7 {[%clk 0:01:48.3]} 18. f4
{[%clk 0:01:35.7]} 18... Nb6 {[%clk 0:01:43]} 19. Be2 {[%clk 0:01:34]} 19... c4
{[%clk 0:01:32.9]} 20. Qxb4 {[%clk 0:01:23.5]} 20... Rab8 {[%clk 0:01:20.1]} 21.
Qa5 {[%clk 0:01:23.7]} 21... Bxb2 {[%clk 0:01:13.7]} 22. f5 {[%clk 0:01:20.1]}
22... Kh7 {[%clk 0:01:10.1]} 23. Kf1 {[%clk 0:01:15.4]} 23... Bf6 {[%clk
0:01:04.1]} 24. Rg3 {[%clk 0:01:01.5]} 24... Bxh4 {[%clk 0:00:48.7]} 25. Rh3
{[%clk 0:01:01.7]} 25... Bf6 {[%clk 0:00:47.8]} 26. Kg2 {[%clk 0:00:53.1]} 26...
Rg8 {[%clk 0:00:46.4]} 27. Rdh1 {[%clk 0:00:52.4]} 27... Kg7 {[%clk 0:00:41.4]}
28. fxg6 {[%clk 0:00:42.8]} 28... fxg6 {[%clk 0:00:40.7]} 29. Rg3 {[%clk
0:00:39.6]} 29... Kf7 {[%clk 0:00:39.9]} 30. f4 {[%clk 0:00:36.6]} 30... Na8
{[%clk 0:00:32]} 31. Qxa6 {[%clk 0:00:35.6]} 31... Rb2 {[%clk 0:00:32.3]} 32.
Bd1 {[%clk 0:00:31.3]} 32... Qc8 {[%clk 0:00:25.9]} 33. Qa3 {[%clk 0:00:27.3]}
33... c3 {[%clk 0:00:19.5]} 34. Qa4 {[%clk 0:00:25]} 34... Nc7 {[%clk
0:00:17.9]} 35. Rf1 {[%clk 0:00:17.7]} 35... h4 {[%clk 0:00:15.9]} 36. Rh3
{[%clk 0:00:18.2]} 36... Qa6 {[%clk 0:00:15.4]} 37. Qd7 {[%clk 0:00:15.5]} 37...
Qc8 {[%clk 0:00:13]} 38. Qc6 {[%clk 0:00:15.2]} 38... Nb5 {[%clk 0:00:10.7]} 39.
e5 {[%clk 0:00:14.5]} 39... Qxc6 {[%clk 0:00:09.5]} 40. dxc6 {[%clk 0:00:15.4]}
40... Bg7 {[%clk 0:00:06.1]} 41. a4 {[%clk 0:00:15.3]} 41... Nc7 {[%clk
0:00:05.9]} 42. Rxh4 {[%clk 0:00:15.4]} 42... Ra8 {[%clk 0:00:04.5]} 43. f5
{[%clk 0:00:12.1]} 43... gxf5 {[%clk 0:00:04.2]} 44. exd6 {[%clk 0:00:11.9]}
44... exd6 {[%clk 0:00:04.5]} 45. Rxf5+ {[%clk 0:00:12.5]} 45... Ke6 {[%clk
0:00:05.2]} 46. Rg5 {[%clk 0:00:11.1]} 46... Be5 {[%clk 0:00:05.4]} 47. Rh6+
{[%clk 0:00:11.2]} 47... Kd5 {[%clk 0:00:06]} 48. Bf3+ {[%clk 0:00:10.9]} 48...
Kc4 {[%clk 0:00:06.7]} 49. Rh4+ {[%clk 0:00:10.8]} 1-0

[Event "Early-Titled-Tuesday-Blitz-April-16-2024"]
[Site "Chess.com"]
[Date "2024.04.16"]
[Round "4"]
[White "HanSchut"]
[Black "PedroGil25"]
[Result "0-1"]
[WhiteElo "2306"]
[BlackElo "2505"]
[TimeControl "180+1"]
[EndTime "8:40:14 PDT"]
[Termination "PedroGil25 won on time"]

1. e4 {[%clk 0:02:59.5]} 1... c5 {[%clk 0:02:58.8]} 2. Nf3 {[%clk 0:02:59.1]}
2... e6 {[%clk 0:02:58.8]} 3. c4 {[%clk 0:02:58.5]} 3... a6 {[%clk 0:02:57.3]}
4. Nc3 {[%clk 0:02:58.1]} 4... Qc7 {[%clk 0:02:56.7]} 5. Be2 {[%clk 0:02:58]}
5... Nf6 {[%clk 0:02:56.8]} 6. O-O {[%clk 0:02:58]} 6... Be7 {[%clk 0:02:56.9]}
7. d4 {[%clk 0:02:58.1]} 7... cxd4 {[%clk 0:02:57.8]} 8. Nxd4 {[%clk 0:02:58.6]}
8... O-O {[%clk 0:02:57]} 9. Be3 {[%clk 0:02:59.2]} 9... d6 {[%clk 0:02:57.3]}
10. Rc1 {[%clk 0:02:59.2]} 10... Nbd7 {[%clk 0:02:56.8]} 11. f3 {[%clk
0:02:59.6]} 11... b6 {[%clk 0:02:57.2]} 12. Qd2 {[%clk 0:02:59.3]} 12... Bb7
{[%clk 0:02:57.5]} 13. Rfd1 {[%clk 0:02:59.5]} 13... Rfe8 {[%clk 0:02:57.9]} 14.
Bf1 {[%clk 0:02:59.3]} 14... Rac8 {[%clk 0:02:55.5]} 15. Kh1 {[%clk 0:02:59.2]}
15... Qb8 {[%clk 0:02:55.7]} 16. Qf2 {[%clk 0:02:57.3]} 16... Bd8 {[%clk
0:02:54.9]} 17. Qg1 {[%clk 0:02:54.9]} 17... Bc7 {[%clk 0:02:54.9]} 18. Bf2
{[%clk 0:02:55.1]} 18... Red8 {[%clk 0:02:26.6]} 19. b4 {[%clk 0:02:54.2]} 19...
Ne5 {[%clk 0:02:16.8]} 20. Nb3 {[%clk 0:02:52.7]} 20... Ba8 {[%clk 0:02:13.5]}
21. Na4 {[%clk 0:02:48.1]} 21... b5 {[%clk 0:02:06.5]} 22. cxb5 {[%clk
0:02:44.6]} 22... axb5 {[%clk 0:02:07.4]} 23. Nc3 {[%clk 0:02:39.7]} 23... Nc4
{[%clk 0:02:07.7]} 24. Nxb5 {[%clk 0:02:23.6]} 24... Qxb5 {[%clk 0:02:06.9]} 25.
Rxc4 {[%clk 0:02:19.7]} 25... Qa4 {[%clk 0:02:05.9]} 26. Rdc1 {[%clk 0:02:10.6]}
26... Qd7 {[%clk 0:01:53.7]} 27. b5 {[%clk 0:01:46.1]} 27... d5 {[%clk
0:01:53.7]} 28. exd5 {[%clk 0:01:40.8]} 28... Bxd5 {[%clk 0:01:54.6]} 29. R4c2
{[%clk 0:01:07.8]} 29... h5 {[%clk 0:01:49.7]} 30. Nc5 {[%clk 0:01:02.2]} 30...
Qd6 {[%clk 0:01:47.3]} 31. Na6 {[%clk 0:00:58.5]} 31... Ne8 {[%clk 0:01:35.5]}
32. a4 {[%clk 0:00:41.2]} 32... Bb7 {[%clk 0:01:29.4]} 33. b6 {[%clk 0:00:34.1]}
33... Bb8 {[%clk 0:01:27.9]} 34. Rxc8 {[%clk 0:00:30.8]} 34... Bxc8 {[%clk
0:01:25.2]} 35. Nxb8 {[%clk 0:00:26.9]} 35... Qxb8 {[%clk 0:01:26.1]} 36. a5
{[%clk 0:00:27.6]} 36... h4 {[%clk 0:01:20.9]} 37. h3 {[%clk 0:00:27.2]} 37...
g5 {[%clk 0:01:18.5]} 38. a6 {[%clk 0:00:27]} 38... Nf6 {[%clk 0:01:18.7]} 39.
b7 {[%clk 0:00:25.2]} 39... Bxb7 {[%clk 0:01:19.1]} 40. axb7 {[%clk 0:00:24.4]}
40... Qxb7 {[%clk 0:01:20]} 41. Be3 {[%clk 0:00:22.1]} 41... Rd5 {[%clk
0:01:20.2]} 42. Qf2 {[%clk 0:00:18]} 42... Nh5 {[%clk 0:01:19.9]} 43. Bc4 {[%clk
0:00:15.6]} 43... Rf5 {[%clk 0:01:19.3]} 44. Qd2 {[%clk 0:00:14.7]} 44... Qe7
{[%clk 0:01:17.6]} 45. Bd3 {[%clk 0:00:13.9]} 45... Rd5 {[%clk 0:01:17.3]} 46.
Qc2 {[%clk 0:00:12.7]} 46... Ng3+ {[%clk 0:01:16.2]} 47. Kg1 {[%clk 0:00:12.7]}
47... Qd6 {[%clk 0:01:15.6]} 48. Bf1 {[%clk 0:00:10.2]} 48... Qe5 {[%clk
0:01:11.2]} 49. Bf2 {[%clk 0:00:09.8]} 49... Nf5 {[%clk 0:01:11.4]} 50. Bd3
{[%clk 0:00:08.4]} 50... Nd4 {[%clk 0:01:09.6]} 51. Qc8+ {[%clk 0:00:06.4]}
51... Kg7 {[%clk 0:01:09.5]} 52. Be4 {[%clk 0:00:06.6]} 52... Rd6 {[%clk
0:01:07.3]} 53. Bxd4 {[%clk 0:00:06.2]} 53... Qxd4+ {[%clk 0:01:08.2]} 54. Kh2
{[%clk 0:00:02.9]} 54... Qe5+ {[%clk 0:01:08.7]} 55. Kh1 {[%clk 0:00:03]} 55...
Qf4 {[%clk 0:01:09.6]} 56. Qc2 {[%clk 0:00:02.3]} 56... Rd2 {[%clk 0:01:10]} 57.
Qc3+ {[%clk 0:00:02.6]} 57... f6 {[%clk 0:01:08.4]} 58. Rg1 {[%clk 0:00:02.6]}
58... Rd7 {[%clk 0:01:07.5]} 59. Qc6 {[%clk 0:00:02.5]} 59... Re7 {[%clk
0:01:07.4]} 60. Qc5 {[%clk 0:00:01.8]} 60... Qc7 {[%clk 0:01:07.8]} 61. Qxc7
{[%clk 0:00:01.7]} 61... Rxc7 {[%clk 0:01:08.7]} 62. Re1 {[%clk 0:00:02.1]}
62... f5 {[%clk 0:01:09.6]} 63. Bd3 {[%clk 0:00:02.1]} 63... Kf6 {[%clk
0:01:10.5]} 64. Bf1 {[%clk 0:00:02.6]} 64... Rc3 {[%clk 0:01:11]} 65. Kg1 {[%clk
0:00:03.5]} 65... e5 {[%clk 0:01:11]} 66. Kf2 {[%clk 0:00:03.5]} 66... Rc2+
{[%clk 0:01:11.3]} 67. Re2 {[%clk 0:00:04.1]} 67... Rc5 {[%clk 0:01:12.2]} 68.
Rd2 {[%clk 0:00:04.6]} 68... e4 {[%clk 0:01:12.3]} 69. fxe4 {[%clk 0:00:04.9]}
69... fxe4 {[%clk 0:01:13.2]} 70. Ke3 {[%clk 0:00:05.2]} 70... Ke5 {[%clk
0:01:13.8]} 71. Be2 {[%clk 0:00:04.5]} 71... Rc3+ {[%clk 0:01:14.3]} 72. Kf2
{[%clk 0:00:05.4]} 72... e3+ {[%clk 0:01:14.7]} 73. Ke1 {[%clk 0:00:01.2]} 73...
exd2+ {[%clk 0:01:15.6]} 74. Kxd2 {[%clk 0:00:02.1]} 74... Ra3 {[%clk
0:01:16.2]} 75. Ke1 {[%clk 0:00:02.5]} 75... Kf4 {[%clk 0:01:17.1]} 76. Kf2
{[%clk 0:00:03.4]} 76... Ra2 {[%clk 0:01:17.3]} 77. Kf1 {[%clk 0:00:01.6]} 77...
Kg3 {[%clk 0:01:18.2]} 78. Bf3 {[%clk 0:00:01.2]} 78... Ra1+ {[%clk 0:01:18.6]}
79. Ke2 {[%clk 0:00:01.1]} 79... Rg1 {[%clk 0:01:19.5]} 0-1

[Event "Early-Titled-Tuesday-Blitz-April-16-2024"]
[Site "Chess.com"]
[Date "2024.04.16"]
[Round "4"]
[White "DominguezOnYoutube"]
[Black "Alonmindlin"]
[Result "1/2-1/2"]
[WhiteElo "2938"]
[BlackElo "2685"]
[TimeControl "180+1"]
[EndTime "8:40:21 PDT"]
[Termination "Game drawn - insufficient material"]

1. e4 {[%clk 0:03:00.9]} 1... e5 {[%clk 0:02:59.2]} 2. Nf3 {[%clk 0:02:59.6]}
2... Nc6 {[%clk 0:02:59.1]} 3. Bb5 {[%clk 0:02:51.3]} 3... a6 {[%clk 0:02:59.4]}
4. Ba4 {[%clk 0:02:50.9]} 4... Nf6 {[%clk 0:02:59.5]} 5. O-O {[%clk 0:02:50]}
5... Be7 {[%clk 0:02:59.9]} 6. d3 {[%clk 0:02:49.4]} 6... b5 {[%clk 0:03:00.2]}
7. Bb3 {[%clk 0:02:49.1]} 7... d6 {[%clk 0:03:01.1]} 8. c3 {[%clk 0:02:49.2]}
8... O-O {[%clk 0:03:00.2]} 9. h3 {[%clk 0:02:49.1]} 9... Be6 {[%clk 0:02:53.8]}
10. Bc2 {[%clk 0:02:44.3]} 10... h6 {[%clk 0:02:53.4]} 11. d4 {[%clk 0:02:41.2]}
11... exd4 {[%clk 0:02:41.1]} 12. cxd4 {[%clk 0:02:42.1]} 12... Nb4 {[%clk
0:02:40.5]} 13. Bb3 {[%clk 0:02:02]} 13... Nxe4 {[%clk 0:02:22]} 14. d5 {[%clk
0:01:56.5]} 14... Bf5 {[%clk 0:02:10.2]} 15. Nd4 {[%clk 0:01:28.4]} 15... Bg6
{[%clk 0:02:04.5]} 16. a3 {[%clk 0:01:27.7]} 16... Nd3 {[%clk 0:01:59.4]} 17.
Qxd3 {[%clk 0:01:26.9]} 17... Nxf2 {[%clk 0:01:55.9]} 18. Qf3 {[%clk 0:01:06.2]}
18... Ne4 {[%clk 0:01:54.2]} 19. Nc6 {[%clk 0:00:55.4]} 19... Qd7 {[%clk
0:01:53.5]} 20. Nxe7+ {[%clk 0:00:55.4]} 20... Qxe7 {[%clk 0:01:53.6]} 21. Nc3
{[%clk 0:00:45.4]} 21... Nc5 {[%clk 0:01:51.2]} 22. Ba2 {[%clk 0:00:34.2]} 22...
Bd3 {[%clk 0:01:48.9]} 23. Rd1 {[%clk 0:00:30.1]} 23... Bc2 {[%clk 0:01:48.7]}
24. Rd2 {[%clk 0:00:25.3]} 24... Bb3 {[%clk 0:01:38.3]} 25. Re2 {[%clk
0:00:24.9]} 25... Qh4 {[%clk 0:01:37.8]} 26. Be3 {[%clk 0:00:23.3]} 26... Bxa2
{[%clk 0:01:36.6]} 27. Bxc5 {[%clk 0:00:16.6]} 27... Bc4 {[%clk 0:01:34.7]} 28.
Re4 {[%clk 0:00:15.8]} 28... Qd8 {[%clk 0:01:28.8]} 29. Bd4 {[%clk 0:00:16]}
29... f6 {[%clk 0:01:29.1]} 30. Rae1 {[%clk 0:00:14.6]} 30... Rf7 {[%clk
0:01:24.6]} 31. R4e3 {[%clk 0:00:14.6]} 31... Qd7 {[%clk 0:01:23.3]} 32. Ne2
{[%clk 0:00:12.3]} 32... Re8 {[%clk 0:01:15.5]} 33. b3 {[%clk 0:00:11.2]} 33...
Rxe3 {[%clk 0:01:14.5]} 34. Bxe3 {[%clk 0:00:07.6]} 34... Bxb3 {[%clk
0:01:14.9]} 35. Nf4 {[%clk 0:00:07.9]} 35... Re7 {[%clk 0:01:13.1]} 36. Bf2
{[%clk 0:00:08.3]} 36... Rxe1+ {[%clk 0:01:11.5]} 37. Bxe1 {[%clk 0:00:09.2]}
37... Bc4 {[%clk 0:01:10.4]} 38. Qe4 {[%clk 0:00:08.3]} 38... Kf7 {[%clk
0:01:08.2]} 39. Ba5 {[%clk 0:00:08]} 39... Qe7 {[%clk 0:00:58.5]} 40. Qxe7+
{[%clk 0:00:07.2]} 40... Kxe7 {[%clk 0:00:59.4]} 41. Bxc7 {[%clk 0:00:07.3]}
41... g5 {[%clk 0:01:00.1]} 42. Nh5 {[%clk 0:00:05.7]} 42... Bxd5 {[%clk
0:01:00]} 43. Ba5 {[%clk 0:00:05.6]} 43... Bf7 {[%clk 0:00:58.8]} 44. Ng3 {[%clk
0:00:05.8]} 44... Ke6 {[%clk 0:00:59.1]} 45. Kf2 {[%clk 0:00:05.5]} 45... f5
{[%clk 0:00:59.6]} 46. Ne2 {[%clk 0:00:05.7]} 46... f4 {[%clk 0:00:59.9]} 47.
Nd4+ {[%clk 0:00:05.9]} 47... Kd5 {[%clk 0:01:00.4]} 48. Nf5 {[%clk 0:00:06]}
48... h5 {[%clk 0:01:01]} 49. Bd8 {[%clk 0:00:04.4]} 49... g4 {[%clk 0:01:01.1]}
50. hxg4 {[%clk 0:00:04]} 50... hxg4 {[%clk 0:01:02]} 51. Bc7 {[%clk 0:00:02.4]}
51... Be6 {[%clk 0:01:01.2]} 52. Nxd6 {[%clk 0:00:02.4]} 52... Kd4 {[%clk
0:00:54.8]} 53. Bb6+ {[%clk 0:00:02.1]} 53... Kc3 {[%clk 0:00:54.9]} 54. Nb7
{[%clk 0:00:02]} 54... g3+ {[%clk 0:00:52]} 55. Kg1 {[%clk 0:00:02]} 55... Bd5
{[%clk 0:00:51.8]} 56. Nc5 {[%clk 0:00:01.5]} 56... Kb2 {[%clk 0:00:51.2]} 57.
Nxa6 {[%clk 0:00:01.6]} 57... Kxa3 {[%clk 0:00:50.9]} 58. Bc5+ {[%clk
0:00:02.1]} 58... Kb2 {[%clk 0:00:50.7]} 59. Bd6 {[%clk 0:00:03]} 59... f3
{[%clk 0:00:50.9]} 60. gxf3 {[%clk 0:00:03]} 60... Bxf3 {[%clk 0:00:51.8]} 61.
Bxg3 {[%clk 0:00:03]} 61... Kc3 {[%clk 0:00:52.3]} 62. Bd6 {[%clk 0:00:03.3]}
62... b4 {[%clk 0:00:51.5]} 63. Nxb4 {[%clk 0:00:04.2]} 63... Kc4 {[%clk
0:00:51.8]} 64. Kf2 {[%clk 0:00:04.8]} 64... Bb7 {[%clk 0:00:51.2]} 65. Ke3
{[%clk 0:00:05.2]} 65... Kb5 {[%clk 0:00:51.2]} 66. Kd4 {[%clk 0:00:05.2]} 66...
Bh1 {[%clk 0:00:52.1]} 67. Nd3 {[%clk 0:00:04.8]} 67... Bg2 {[%clk 0:00:52.4]}
68. Bf4 {[%clk 0:00:04.4]} 68... Bh1 {[%clk 0:00:52.8]} 69. Ne5 {[%clk
0:00:04.5]} 69... Bg2 {[%clk 0:00:53.3]} 70. Ng4 {[%clk 0:00:04]} 70... Bf3
{[%clk 0:00:53.4]} 71. Ne3 {[%clk 0:00:04.9]} 71... Ba8 {[%clk 0:00:53.8]} 72.
Ke5 {[%clk 0:00:04.9]} 72... Bh1 {[%clk 0:00:54.3]} 73. Nf5 {[%clk 0:00:05.5]}
73... Ba8 {[%clk 0:00:54.7]} 74. Nd4+ {[%clk 0:00:06]} 74... Kc4 {[%clk
0:00:55.1]} 75. Kd6 {[%clk 0:00:06.6]} 75... Kxd4 {[%clk 0:00:54.8]} 1/2-1/2

[Event "Early-Titled-Tuesday-Blitz-April-16-2024"]
[Site "Chess.com"]
[Date "2024.04.16"]
[Round "4"]
[White "GMAneta"]
[Black "CarlosjPineror"]
[Result "1-0"]
[WhiteElo "2559"]
[BlackElo "2724"]
[TimeControl "180+1"]
[EndTime "8:40:21 PDT"]
[Termination "GMAneta won by resignation"]

1. d4 {[%clk 0:03:00.4]} 1... Nf6 {[%clk 0:02:59.5]} 2. Nf3 {[%clk 0:02:59.6]}
2... g6 {[%clk 0:02:59.4]} 3. c4 {[%clk 0:02:59.5]} 3... d6 {[%clk 0:02:59.6]}
4. g3 {[%clk 0:02:59.3]} 4... Bg7 {[%clk 0:02:59.7]} 5. Bg2 {[%clk 0:03:00.2]}
5... O-O {[%clk 0:02:55.9]} 6. O-O {[%clk 0:03:00.1]} 6... c5 {[%clk 0:02:56.5]}
7. Nc3 {[%clk 0:03:00]} 7... Nc6 {[%clk 0:02:50.2]} 8. dxc5 {[%clk 0:02:59.7]}
8... dxc5 {[%clk 0:02:50.4]} 9. Be3 {[%clk 0:03:00.2]} 9... Be6 {[%clk
0:02:33.1]} 10. Bxc5 {[%clk 0:02:57.3]} 10... Bxc4 {[%clk 0:02:21.4]} 11. Qa4
{[%clk 0:02:56.5]} 11... Be6 {[%clk 0:01:55.6]} 12. Rfd1 {[%clk 0:02:48.2]}
12... Nd7 {[%clk 0:01:44.2]} 13. Ba3 {[%clk 0:02:45.6]} 13... h6 {[%clk
0:01:35.7]} 14. Rac1 {[%clk 0:02:35.1]} 14... Rc8 {[%clk 0:01:16.3]} 15. Qe4
{[%clk 0:02:23.1]} 15... Bf5 {[%clk 0:01:04]} 16. Qf4 {[%clk 0:02:15]} 16... Re8
{[%clk 0:00:45.7]} 17. Nd5 {[%clk 0:02:04.6]} 17... e6 {[%clk 0:00:22]} 18. Nc3
{[%clk 0:02:04.3]} 18... e5 {[%clk 0:00:22.5]} 19. Qe3 {[%clk 0:02:03.6]} 19...
Qb6 {[%clk 0:00:15.5]} 20. Nd5 {[%clk 0:01:48.4]} 20... Qxe3 {[%clk 0:00:14.8]}
21. Nxe3 {[%clk 0:01:49.3]} 21... Be6 {[%clk 0:00:12.3]} 22. Nc4 {[%clk
0:01:49.6]} 22... Bf8 {[%clk 0:00:10.4]} 23. Bxf8 {[%clk 0:01:46.4]} 23... Rxf8
{[%clk 0:00:11.3]} 24. Nd6 {[%clk 0:01:46.2]} 24... Rb8 {[%clk 0:00:11.7]} 25.
b3 {[%clk 0:01:45]} 25... Kg7 {[%clk 0:00:08.4]} 26. Nxb7 {[%clk 0:01:44]} 26...
Rxb7 {[%clk 0:00:07.8]} 27. Rxc6 {[%clk 0:01:43.9]} 27... a5 {[%clk 0:00:07.6]}
28. Rcd6 {[%clk 0:01:40.1]} 28... Ra7 {[%clk 0:00:07.8]} 29. h4 {[%clk
0:01:34.2]} 29... Rb8 {[%clk 0:00:07]} 30. h5 {[%clk 0:01:23.7]} 30... gxh5
{[%clk 0:00:06.7]} 31. R1d2 {[%clk 0:01:16.6]} 31... Kf8 {[%clk 0:00:06.9]} 32.
Nh4 {[%clk 0:01:08]} 32... Ke7 {[%clk 0:00:06.4]} 33. Be4 {[%clk 0:01:06.4]}
33... Rb4 {[%clk 0:00:04]} 34. Bc2 {[%clk 0:01:00.7]} 34... Nc5 {[%clk
0:00:02.7]} 35. Rc6 {[%clk 0:00:59.1]} 35... Nd7 {[%clk 0:00:02.2]} 36. Nf5+
{[%clk 0:00:57.9]} 36... Bxf5 {[%clk 0:00:02.3]} 37. Bxf5 {[%clk 0:00:58.7]}
37... Nf6 {[%clk 0:00:02.4]} 38. Rdd6 {[%clk 0:00:56.9]} 38... Ne8 {[%clk
0:00:02]} 39. Rxh6 {[%clk 0:00:55.8]} 39... Rc7 {[%clk 0:00:02.5]} 40. Rxc7+
{[%clk 0:00:54.2]} 40... Nxc7 {[%clk 0:00:03.4]} 41. Rxh5 {[%clk 0:00:54.6]}
41... a4 {[%clk 0:00:03.9]} 42. bxa4 {[%clk 0:00:54.1]} 42... Rxa4 {[%clk
0:00:04.8]} 43. Bc2 {[%clk 0:00:48.8]} 43... Ra5 {[%clk 0:00:05.4]} 44. Bb3
{[%clk 0:00:48]} 44... f6 {[%clk 0:00:05.1]} 45. Rh7+ {[%clk 0:00:47.6]} 45...
Kd6 {[%clk 0:00:05.8]} 46. Rf7 {[%clk 0:00:47.8]} 46... Nb5 {[%clk 0:00:04.6]}
47. Rxf6+ {[%clk 0:00:47.6]} 47... Kc5 {[%clk 0:00:05.4]} 48. e3 {[%clk
0:00:47.4]} 48... Nc3 {[%clk 0:00:05.5]} 49. Kg2 {[%clk 0:00:45.5]} 49... Ne4
{[%clk 0:00:05.8]} 50. Rf5 {[%clk 0:00:45.3]} 50... Kb4 {[%clk 0:00:06.6]} 51.
Kf3 {[%clk 0:00:43.9]} 51... Nd2+ {[%clk 0:00:06.7]} 52. Ke2 {[%clk 0:00:42.5]}
52... Kc3 {[%clk 0:00:07.6]} 53. Be6 {[%clk 0:00:40]} 53... Ne4 {[%clk
0:00:06.9]} 54. g4 {[%clk 0:00:38.2]} 54... Rb5 {[%clk 0:00:05.8]} 55. Bb3
{[%clk 0:00:36.1]} 55... Nd2 {[%clk 0:00:04.3]} 56. f4 {[%clk 0:00:34.5]} 56...
Ne4 {[%clk 0:00:04]} 57. Rxe5 {[%clk 0:00:33]} 57... Rxe5 {[%clk 0:00:04.6]} 58.
fxe5 {[%clk 0:00:33.1]} 58... Ng5 {[%clk 0:00:05.5]} 59. e6 {[%clk 0:00:32.8]}
59... Kb4 {[%clk 0:00:06.4]} 60. e7 {[%clk 0:00:32.8]} 1-0

[Event "Early-Titled-Tuesday-Blitz-April-16-2024"]
[Site "Chess.com"]
[Date "2024.04.16"]
[Round "4"]
[White "WindWhistler11"]
[Black "Mops_2004"]
[Result "0-1"]
[WhiteElo "2524"]
[BlackElo "2792"]
[TimeControl "180+1"]
[EndTime "8:40:24 PDT"]
[Termination "Mops_2004 won on time"]

1. Nf3 {[%clk 0:02:57.3]} 1... f5 {[%clk 0:02:58.8]} 2. g3 {[%clk 0:02:55.9]}
2... Nf6 {[%clk 0:02:58.9]} 3. Bg2 {[%clk 0:02:56.6]} 3... g6 {[%clk 0:02:58.8]}
4. d3 {[%clk 0:02:57.1]} 4... d6 {[%clk 0:02:58.1]} 5. c4 {[%clk 0:02:56.4]}
5... e5 {[%clk 0:02:56.5]} 6. Nc3 {[%clk 0:02:56.6]} 6... Bg7 {[%clk 0:02:53.1]}
7. O-O {[%clk 0:02:50.5]} 7... a5 {[%clk 0:02:44.9]} 8. Rb1 {[%clk 0:02:46.6]}
8... Nc6 {[%clk 0:02:34.1]} 9. a3 {[%clk 0:02:45.9]} 9... h6 {[%clk 0:02:31.6]}
10. b4 {[%clk 0:02:45.8]} 10... axb4 {[%clk 0:02:32.4]} 11. axb4 {[%clk
0:02:46.3]} 11... O-O {[%clk 0:02:31.3]} 12. b5 {[%clk 0:02:41.7]} 12... Ne7
{[%clk 0:02:30.9]} 13. Qc2 {[%clk 0:02:32.1]} 13... g5 {[%clk 0:02:25.4]} 14. c5
{[%clk 0:02:13.7]} 14... Ng6 {[%clk 0:02:17.9]} 15. cxd6 {[%clk 0:02:01.9]}
15... cxd6 {[%clk 0:02:17.6]} 16. Qb3+ {[%clk 0:01:58.4]} 16... Kh7 {[%clk
0:02:12.6]} 17. b6 {[%clk 0:01:56.9]} 17... g4 {[%clk 0:01:49.3]} 18. Nd2 {[%clk
0:01:53.2]} 18... h5 {[%clk 0:01:49.7]} 19. Ba3 {[%clk 0:01:50.3]} 19... h4
{[%clk 0:01:44.2]} 20. Nc4 {[%clk 0:01:47.1]} 20... Be6 {[%clk 0:01:17.6]} 21.
Nb5 {[%clk 0:01:33]} 21... d5 {[%clk 0:01:03.4]} 22. Ncd6 {[%clk 0:01:31.7]}
22... Qxb6 {[%clk 0:01:02.9]} 23. Rfc1 {[%clk 0:00:56.4]} 23... Bg8 {[%clk
0:00:34]} 24. Rc7 {[%clk 0:00:45.9]} 24... f4 {[%clk 0:00:28.2]} 25. Rxb7 {[%clk
0:00:39.8]} 25... Qa5 {[%clk 0:00:18.5]} 26. Bb4 {[%clk 0:00:20.7]} 26... Qd8
{[%clk 0:00:18.5]} 27. Rxg7+ {[%clk 0:00:17.2]} 27... Kxg7 {[%clk 0:00:18.4]}
28. Nf5+ {[%clk 0:00:17.9]} 28... Kh7 {[%clk 0:00:17.6]} 29. Bxf8 {[%clk
0:00:16.5]} 29... Qxf8 {[%clk 0:00:17.4]} 30. Rc1 {[%clk 0:00:12.5]} 30... Rc8
{[%clk 0:00:15.1]} 31. Qb2 {[%clk 0:00:10.4]} 31... fxg3 {[%clk 0:00:13.3]} 32.
hxg3 {[%clk 0:00:10.4]} 32... hxg3 {[%clk 0:00:10.9]} 33. Nxg3 {[%clk
0:00:08.6]} 33... Nf4 {[%clk 0:00:10.1]} 34. Rxc8 {[%clk 0:00:06.4]} 34... Qxc8
{[%clk 0:00:09.5]} 35. Nd6 {[%clk 0:00:05.6]} 35... Qe6 {[%clk 0:00:07.9]} 36.
Ndf5 {[%clk 0:00:05.8]} 36... Bf7 {[%clk 0:00:06.4]} 37. Bf1 {[%clk 0:00:04.6]}
37... e4 {[%clk 0:00:05.2]} 38. dxe4 {[%clk 0:00:03.9]} 38... dxe4 {[%clk
0:00:05.6]} 39. e3 {[%clk 0:00:04.1]} 39... Ng6 {[%clk 0:00:05.2]} 40. Qd4
{[%clk 0:00:03.7]} 40... Ne5 {[%clk 0:00:05.3]} 41. Be2 {[%clk 0:00:02.6]} 41...
Kg6 {[%clk 0:00:05.4]} 42. Bc4 {[%clk 0:00:02.7]} 42... Nxc4 {[%clk 0:00:04.9]}
43. Nh4+ {[%clk 0:00:02.2]} 43... Kg5 {[%clk 0:00:05.4]} 44. Ngf5 {[%clk
0:00:02.6]} 44... Ne5 {[%clk 0:00:05.3]} 45. Qd8 {[%clk 0:00:02.7]} 45... Bg6
{[%clk 0:00:04.1]} 46. Qh8 {[%clk 0:00:01.7]} 46... Bxf5 {[%clk 0:00:03.5]} 47.
Qg7+ {[%clk 0:00:02.3]} 47... Bg6 {[%clk 0:00:03.5]} 48. Ng2 {[%clk 0:00:01.5]}
48... Nf3+ {[%clk 0:00:03.5]} 0-1